bitfinex/quotes_BTCUSD_20220201
["timestamp","ask_amount","ask_price","bid_price","bid_amount"]
[1643726630668,0.31026103,38630.0,38617.0,0.0348922]
[1643726630869,0.31026103,38630.0,38617.0,0.22445403]
[1643726631066,0.26020515,38638.0,38617.0,0.40719794]
[1643726631067,0.10218479,38629.0,38617.0,0.40719794]
[1643726631266,0.01966063,38628.0,38619.0,0.08545546]
[1643726631472,0.01966063,38628.0,38620.0,0.38421092]
[1643726631665,0.10218479,38629.0,38628.0,0.13970866]
[1643726632067,0.10218479,38629.0,38628.0,0.05]
[1643726632268,0.10218479,38629.0,38613.0,0.129502]
[1643726632269,1.2,38628.0,38607.0,0.10041789]
[1643726632472,0.05,38618.0,38607.0,0.03884946]
[1643726632669,0.05,38620.0,38594.0,0.1]
[1643726632670,0.41245203,38617.0,38594.0,0.1]
[1643726632869,0.5944,38613.0,38597.0,0.00070652]
[1643726633173,0.36485203,38617.0,38597.0,0.00070652]
[1643726633174,0.08175914,38599.0,38597.0,0.00070652]
[1643726633369,0.0476,38601.0,38597.0,0.00070652]
[1643726633570,0.14581115,38617.0,38597.0,0.00070652]
[1643726633571,0.0476,38600.0,38597.0,0.00070652]
[1643726633769,0.0476,38599.0,38595.0,0.23135404]
[1643726633968,0.0476,38600.0,38597.0,0.00258341]
[1643726634269,0.0476,38600.0,38599.0,1.03690131]
[1643726634513,0.26401184,38610.0,38601.0,0.04542061]
[1643726634514,0.0476,38606.0,38601.0,0.04542061]
[1643726634715,0.0476,38606.0,38605.0,0.16772659]
[1643726634913,0.0476,38606.0,38605.0,0.26527489]
[1643726635115,0.0476,38606.0,38605.0,0.36763793]
[1643726635314,0.0476,38616.0,38605.0,0.26772659]
[1643726635718,0.39249497,38616.0,38605.0,0.68540032]
[1643726635914,0.39249497,38616.0,38606.0,0.10343384]
[1643726635915,0.0190806,38609.0,38606.0,0.10343384]
[1643726636114,0.064765,38627.0,38607.0,0.45631888]
[1643726636314,0.218506,38622.0,38609.0,0.09266791]
[1643726636516,0.218506,38622.0,38607.0,0.18161814]
[1643726636517,0.1,38627.0,38601.0,0.129536]
[1643726636717,0.6227,38631.0,38597.0,0.00156282]
[1643726636718,0.13610481,38611.0,38597.0,0.00156282]
[1643726636913,0.44323145,38610.0,38597.0,0.00156282]
[1643726637124,0.98707318,38599.0,38597.0,0.00156282]
[1643726637315,1.50252068,38598.0,38597.0,0.00156282]
[1643726637516,1.50252068,38598.0,38586.0,0.065907]
[1643726637718,1.15,38597.0,38596.0,0.00155203]
[1643726637918,1.15,38597.0,38586.0,0.0011]
[1643726637919,1.43468611,38595.0,38586.0,0.0011]
[1643726638172,1.43468611,38595.0,38575.0,0.218506]
[1643726638173,0.35684207,38587.0,38575.0,0.218506]
[1643726638376,0.0894962,38588.0,38586.0,0.25916]
[1643726638572,0.942,38593.0,38586.0,0.25916]
[1643726638772,0.27018564,38592.0,38586.0,0.25916]
[1643726638972,0.0476,38591.0,38586.0,0.25916]
[1643726639373,0.1476,38591.0,38573.0,0.00205682]
[1643726639572,0.1476,38591.0,38578.0,0.38216926]
[1643726639772,0.1476,38591.0,38579.0,0.218506]
[1643726639773,0.0476,38591.0,38579.0,0.218506]
[1643726639975,0.5944,38593.0,38584.0,0.05]
[1643726639976,0.01955593,38593.0,38584.0,0.05]
[1643726640173,0.01955593,38593.0,38586.0,0.1420449]
[1643726640373,0.01955593,38593.0,38588.0,0.04712855]
[1643726640573,0.00011636,38602.0,38591.0,0.10081099]
[1643726640776,0.00011636,38602.0,38590.0,1.2]
[1643726640777,0.00011636,38602.0,38597.0,0.04510239]
[1643726640983,0.0476,38628.0,38599.0,0.03310643]
[1643726640984,0.6263,38628.0,38599.0,0.03310643]
[1643726641172,0.6263,38628.0,38601.0,0.04893557]
[1643726641372,0.6263,38628.0,38602.0,0.26496126]
[1643726641373,0.00640938,38607.0,38602.0,0.26496126]
[1643726641573,0.00640938,38607.0,38604.0,0.04641714]
[1643726641773,0.00640938,38607.0,38605.0,0.87230643]
[1643726642030,0.3,38628.0,38609.0,0.10475028]
[1643726642232,0.05,38622.0,38609.0,0.13529569]
[1643726642428,0.05,38622.0,38598.0,0.194287]
[1643726642429,0.484529,38621.0,38598.0,0.194287]
[1643726642627,0.0476,38620.0,38598.0,0.194287]
[1643726642828,0.71320009,38621.0,38599.0,0.04893331]
[1643726642829,0.330798,38619.0,38599.0,0.04893331]
[1643726643028,1.2,38627.0,38598.0,0.194287]
[1643726643029,0.218506,38620.0,38601.0,0.04167692]
[1643726643228,0.266023,38619.0,38615.0,0.10407566]
[1643726643429,0.218506,38626.0,38615.0,0.10407566]
[1643726643634,0.218506,38634.0,38615.0,0.14682523]
[1643726643829,0.266023,38633.0,38616.0,0.0490487]
[1643726644036,0.218506,38635.0,38618.0,0.10395993]
[1643726644037,0.218506,38632.0,38618.0,0.10395993]
[1643726644228,0.266023,38631.0,38621.0,0.39436806]
[1643726644430,0.266023,38631.0,38624.0,0.21603426]
[1643726644431,0.484529,38630.0,38624.0,0.21603426]
[1643726644631,0.484529,38630.0,38624.0,0.21873157]
[1643726644829,0.266023,38630.0,38624.0,0.21873157]
[1643726645131,0.09852,38631.0,38625.0,0.04158968]
[1643726645332,0.09852,38631.0,38625.0,0.097829]
[1643726645531,0.266023,38630.0,38626.0,0.04118197]
[1643726645776,0.09852,38631.0,38628.0,0.03583358]
[1643726645979,0.09852,38631.0,38628.0,0.13994104]
[1643726645980,0.11662899,38631.0,38628.0,0.13994104]
[1643726646179,0.01810899,38631.0,38628.0,0.20419397]
[1643726646579,0.2199353,38646.0,38631.0,0.04673004]
[1643726646580,0.14778,38645.0,38631.0,0.04673004]
[1643726646776,0.4169753,38646.0,38630.0,0.00796706]
[1643726646777,0.50668609,38643.0,38632.0,0.14869536]
[1643726646978,0.14778,38641.0,38633.0,0.04737258]
[1643726647178,0.14778,38641.0,38633.0,0.04513577]
[1643726647378,0.14778,38641.0,38638.0,0.15720727]
[1643726647577,0.266023,38640.0,38638.0,0.25720727]
[1643726647780,0.266023,38640.0,38631.0,0.05]
[1643726647781,0.3184553,38639.0,38631.0,0.05]
[1643726647979,0.3184553,38639.0,38632.0,0.129439]
[1643726647980,0.51778636,38638.0,38632.0,0.129439]
[1643726648179,0.61630636,38638.0,38632.0,0.129439]
[1643726648380,0.61630636,38638.0,38633.0,0.03418974]
[1643726648580,0.14778,38636.0,38633.0,0.03418974]
[1643726648785,0.34482,38635.0,38634.0,0.12559704]
[1643726648978,0.34482,38635.0,38633.0,0.03418974]
[1643726648979,0.57894495,38635.0,38630.0,0.01810899]
[1643726649428,0.266023,38634.0,38630.0,0.01810899]
[1643726649628,0.09852,38631.0,38624.0,0.129467]
[1643726649829,0.1512695,38626.0,38615.0,0.03324843]
[1643726650029,0.09852,38623.0,38605.0,0.04107447]
[1643726650228,0.09852,38623.0,38605.0,0.00161202]
[1643726650229,0.064772,38620.0,38605.0,0.00161202]
[1643726650428,0.47801101,38619.0,38605.0,0.00161202]
[1643726650627,0.2199353,38618.0,38605.0,0.00161202]
[1643726650827,0.309623,38617.0,38605.0,0.0016116]
[1643726651034,0.3482837,38609.0,38605.0,0.0016116]
[1643726651229,0.22297482,38607.0,38605.0,0.0016116]
[1643726651434,1.72065853,38606.0,38605.0,0.0016116]
[1643726651629,1.76425853,38606.0,38605.0,1.16e-05]
[1643726651830,0.66425853,38606.0,38598.0,0.0031]
[1643726652034,0.56425853,38606.0,38598.0,0.0031]
[1643726652237,0.0436,38606.0,38599.0,0.50134398]
[1643726652430,0.0436,38606.0,38600.0,0.00538848]
[1643726652630,0.0436,38606.0,38601.0,0.04402471]
[1643726652830,0.0436,38606.0,38601.0,0.00728362]
[1643726653031,0.09852,38619.0,38602.0,0.00777225]
[1643726653279,0.09852,38619.0,38604.0,0.05]
[1643726653479,0.7308,38640.0,38607.0,0.03237941]
[1643726653678,0.00023124,38641.0,38612.0,0.05]
[1643726653876,0.00023124,38641.0,38613.0,0.32491565]
[1643726654079,0.30396382,38641.0,38637.0,0.09728169]
[1643726654275,0.30396382,38641.0,38637.0,0.05]
[1643726654276,0.266023,38640.0,38637.0,0.05]
[1643726654477,0.23981483,38639.0,38637.0,0.05]
[1643726654679,0.04406026,38636.0,38618.0,0.2199353]
[1643726654877,0.04406026,38636.0,38617.0,0.12948]
[1643726654878,0.2199353,38635.0,38617.0,0.12948]
[1643726655079,1.630023,38634.0,38607.0,9.847e-05]
[1643726655278,0.07498142,38617.0,38607.0,9.847e-05]
[1643726655477,0.24531556,38615.0,38606.0,0.17210136]
[1643726655676,0.266023,38614.0,38606.0,0.17210136]
[1643726656481,0.266023,38614.0,38602.0,0.26632144]
[1643726656482,0.09028613,38611.0,38602.0,0.0031]
[1643726656684,0.4859583,38610.0,38602.0,0.0031]
[1643726656918,1.2,38608.0,38598.0,0.0031]
[1643726657122,1.2,38608.0,38586.0,6.374e-05]
[1643726657123,0.66910991,38607.0,38586.0,6.374e-05]
[1643726657318,0.2199353,38606.0,38586.0,6.374e-05]
[1643726657517,0.7241518,38607.0,38593.0,0.14423094]
[1643726657518,0.2993997,38601.0,38593.0,0.14423094]
[1643726657718,0.266023,38600.0,38593.0,0.04012]
[1643726657916,0.266023,38604.0,38592.0,0.0011]
[1643726658117,0.266023,38604.0,38595.0,0.00162042]
[1643726658317,0.129618,38602.0,38595.0,0.00162042]
[1643726658520,0.5295583,38601.0,38595.0,0.00162042]
[1643726658718,0.09796589,38597.0,38595.0,0.00162042]
[1643726658921,1.1989,38595.0,38586.0,0.00092152]
[1643726659124,0.309623,38594.0,38578.0,0.0011]
[1643726659325,1.2,38586.0,38578.0,0.0011]
[1643726659523,0.7793466,38585.0,38578.0,0.0011]
[1643726659724,0.83438849,38585.0,38578.0,0.0011]
[1643726659925,0.09045955,38582.0,38578.0,0.0011]
[1643726660124,0.309623,38581.0,38578.0,0.0011]
[1643726660427,0.4064786,38574.0,38573.0,0.00205682]
[1643726660675,0.26897515,38574.0,38573.0,0.00205682]
[1643726660977,0.26897515,38574.0,38573.0,0.00605382]
[1643726660978,0.0436,38574.0,38573.0,0.00605382]
[1643726661182,0.0436,38574.0,38568.0,0.0031]
[1643726661376,1.2,38572.0,38567.0,0.0030293]
[1643726661576,1.2,38572.0,38559.0,0.04058639]
[1643726661577,1.2,38570.0,38560.0,0.0125]
[1643726661787,1.7888593,38569.0,38564.0,0.00329397]
[1643726661980,0.44390119,38569.0,38564.0,0.00329397]
[1643726662178,0.17497719,38568.0,38564.0,0.36222397]
[1643726662376,0.225324,38567.0,38564.0,0.36222397]
[1643726662576,0.108456,38569.0,38564.0,0.36222397]
[1643726662777,0.108456,38569.0,38564.0,0.35893]
[1643726662975,1.2,38567.0,38561.0,0.01825136]
[1643726663177,0.69220598,38566.0,38561.0,0.01825136]
[1643726663376,0.44189219,38566.0,38561.0,0.01825136]
[1643726663579,0.266915,38566.0,38561.0,0.06446103]
[1643726663774,0.266915,38566.0,38562.0,0.0053716]
[1643726663775,0.0436,38566.0,38562.0,0.0053716]
[1643726663977,0.59849755,38565.0,38561.0,0.01325136]
[1643726664176,0.59849755,38565.0,38546.0,0.04651991]
[1643726664177,0.13110732,38552.0,38548.0,0.0011]
[1643726664415,0.13110732,38552.0,38548.0,0.04046753]
[1643726664416,0.08670718,38552.0,38548.0,0.04046753]
[1643726664818,0.08670718,38552.0,38551.0,0.22330338]
[1643726665020,0.08670718,38552.0,38551.0,0.72000319]
[1643726665218,0.08670718,38552.0,38551.0,0.1005]
[1643726665615,0.08670718,38552.0,38551.0,0.0005]
[1643726666018,0.01325136,38562.0,38557.0,0.05]
[1643726666220,1.16857091,38582.0,38566.0,0.05]
[1643726666221,0.2199353,38574.0,38566.0,0.05]
[1643726666418,0.223315,38573.0,38566.0,0.10262347]
[1643726666616,0.010005,38575.0,38561.0,0.01909434]
[1643726666815,0.010005,38575.0,38567.0,0.09110829]
[1643726667018,0.010005,38575.0,38568.0,0.04736021]
[1643726667221,0.08461716,38573.0,38567.0,0.08536543]
[1643726667415,0.010005,38572.0,38567.0,0.05]
[1643726667617,0.010005,38572.0,38568.0,0.00629566]
[1643726667815,0.00159555,38577.0,38568.0,0.04744425]
[1643726668020,0.00159555,38577.0,38569.0,0.26430396]
[1643726668280,0.00159555,38577.0,38571.0,0.064822]
[1643726668479,0.00159555,38577.0,38576.0,0.10373878]
[1643726668680,0.37397129,38580.0,38576.0,0.15223725]
[1643726668681,0.02113635,38580.0,38576.0,0.15223725]
[1643726668880,0.02113635,38580.0,38577.0,0.00687919]
[1643726669081,0.02113635,38580.0,38577.0,0.03914381]
[1643726669082,0.00159576,38578.0,38577.0,0.03914381]
[1643726669280,0.00159576,38578.0,38576.0,0.26856078]
[1643726669481,0.00159576,38578.0,38577.0,0.03534752]
[1643726669680,0.02113635,38580.0,38577.0,0.75665859]
[1643726669883,0.02113635,38580.0,38577.0,0.350114]
[1643726670081,0.02113635,38580.0,38577.0,0.04103744]
[1643726670280,0.02113635,38580.0,38576.0,0.1]
[1643726670483,0.02113635,38580.0,38576.0,0.05]
[1643726670683,0.02113635,38580.0,38577.0,0.05]
[1643726670880,0.02113635,38580.0,38578.0,0.39170496]
[1643726671081,0.02113635,38580.0,38579.0,0.04939643]
[1643726671285,0.02113635,38580.0,38579.0,0.39951043]
[1643726671481,0.02113635,38580.0,38579.0,0.25315128]
[1643726671482,0.02272812,38580.0,38579.0,0.25315128]
[1643726671687,0.02272812,38580.0,38579.0,0.27866526]
[1643726671925,0.02272812,38580.0,38579.0,0.32866526]
[1643726672121,0.01459566,38585.0,38580.0,0.6]
[1643726672321,0.01953399,38591.0,38582.0,0.129611]
[1643726672921,0.194467,38602.0,38582.0,0.279611]
[1643726673127,0.17497719,38606.0,38597.0,0.08880747]
[1643726673128,0.56524712,38601.0,38597.0,0.08880747]
[1643726673326,0.23332,38600.0,38592.0,0.03239567]
[1643726673524,0.24255497,38597.0,38592.0,0.03239567]
[1643726673727,0.24255497,38597.0,38590.0,0.14911899]
[1643726673728,0.43511714,38596.0,38590.0,0.14911899]
[1643726673930,0.43511714,38596.0,38590.0,0.01953399]
[1643726674123,0.23332,38596.0,38590.0,0.01953399]
[1643726674323,0.40815855,38595.0,38592.0,0.08038452]
[1643726674522,0.23332,38594.0,38590.0,0.01953399]
[1643726675426,0.08621122,38592.0,38590.0,3.99e-06]
[1643726675682,0.24785,38591.0,38590.0,3.99e-06]
[1643726675880,0.52332991,38591.0,38590.0,3.99e-06]
[1643726676080,0.52332991,38591.0,38585.0,0.01820916]
[1643726676283,0.1,38590.0,38585.0,0.01820916]
[1643726676482,0.70049246,38589.0,38585.0,0.01820916]
[1643726676681,0.20907418,38588.0,38585.0,0.01820916]
[1643726676980,0.20907418,38588.0,38580.0,0.08961988]
[1643726676981,1.86544956,38586.0,38580.0,0.08961988]
[1643726677180,0.23332,38585.0,38580.0,0.08961988]
[1643726677584,0.23332,38585.0,38580.0,0.11010894]
[1643726677983,0.23332,38585.0,38580.0,0.21010894]
[1643726678183,0.00158779,38588.0,38581.0,0.17212842]
[1643726678386,0.75188529,38601.0,38582.0,0.53562608]
[1643726678387,0.20012806,38600.0,38582.0,0.53562608]
[1643726678585,0.17514447,38600.0,38583.0,0.28721557]
[1643726678782,0.00158779,38584.0,38583.0,0.05]
[1643726678981,0.40398527,38601.0,38597.0,0.08370738]
[1643726679183,0.23332,38600.0,38597.0,0.14044588]
[1643726679424,0.37678819,38606.0,38598.0,0.12956861]
[1643726679626,0.23332,38605.0,38598.0,0.17956861]
[1643726679821,0.01,38609.0,38598.0,0.17956861]
[1643726679822,0.23332,38608.0,38600.0,0.00731689]
[1643726680019,0.01,38609.0,38600.0,0.00731689]
[1643726680020,0.23332,38607.0,38600.0,0.00694896]
[1643726680224,0.26453732,38606.0,38603.0,0.09437018]
[1643726680421,0.23332,38605.0,38604.0,0.16566697]
[1643726680621,0.01,38609.0,38604.0,0.22263817]
[1643726680822,0.01,38609.0,38605.0,0.20626561]
[1643726681023,0.01,38609.0,38605.0,0.03238701]
[1643726681221,0.01,38609.0,38605.0,0.05]
[1643726681423,0.01,38609.0,38606.0,0.00527856]
[1643726681623,0.01,38609.0,38607.0,0.05]
[1643726681824,0.01,38609.0,38606.0,0.00527856]
[1643726682024,0.01,38609.0,38606.0,0.10968131]
[1643726682224,0.01,38609.0,38606.0,0.05]
[1643726682426,0.01,38609.0,38599.0,0.19433864]
[1643726682427,0.21419826,38608.0,38599.0,0.19433864]
[1643726682626,0.21419826,38608.0,38596.0,0.12957]
[1643726682627,0.37921912,38602.0,38596.0,0.12957]
[1643726683028,0.37921912,38602.0,38587.0,0.20432215]
[1643726683029,0.47990708,38601.0,38587.0,0.20432215]
[1643726683268,0.2798058,38589.0,38587.0,0.064807]
[1643726683569,0.20012806,38600.0,38585.0,0.35799936]
[1643726683570,0.34598504,38600.0,38592.0,0.019009]
[1643726683765,0.37692,38599.0,38592.0,0.019009]
[1643726683966,0.37692,38599.0,38592.0,0.00614139]
[1643726683967,0.23332,38599.0,38592.0,0.00614139]
[1643726684165,0.00158382,38601.0,38587.0,0.00504733]
[1643726684366,0.55830195,38608.0,38588.0,0.064807]
[1643726684367,0.064807,38599.0,38588.0,0.064807]
[1643726684567,0.09624532,38591.0,38586.0,0.16087929]
[1643726684767,0.23332,38590.0,38586.0,0.16087929]
[1643726685065,0.60521332,38590.0,38586.0,0.19328389]
[1643726685268,0.23332,38590.0,38581.0,0.0648092]
[1643726685479,0.38627523,38596.0,38582.0,0.20012806]
[1643726685670,0.38627523,38596.0,38585.0,0.00574293]
[1643726685671,0.24720415,38596.0,38585.0,0.00574293]
[1643726685868,0.00158382,38587.0,38581.0,0.0648092]
[1643726686267,0.00158382,38587.0,38583.0,0.14458456]
[1643726686468,0.23723142,38586.0,38583.0,0.14458456]
[1643726686668,0.00158382,38587.0,38583.0,0.14458456]
[1643726686942,0.37620437,38593.0,38584.0,0.064814]
[1643726687134,0.00158382,38586.0,38584.0,0.064814]
[1643726687335,0.00026909,38586.0,38585.0,0.00707755]
[1643726687535,0.00026909,38586.0,38584.0,0.09721856]
[1643726687735,0.00019763,38586.0,38584.0,0.09721856]
[1643726687934,0.06481,38597.0,38585.0,0.05]
[1643726688138,0.23332,38596.0,38584.0,0.114814]
[1643726688334,0.38637481,38591.0,38584.0,0.05]
[1643726688536,0.2060302,38590.0,38584.0,0.05]
[1643726688736,0.23332,38589.0,38583.0,0.14458456]
[1643726688936,0.19300979,38592.0,38583.0,0.20939556]
[1643726689135,0.064816,38593.0,38583.0,0.20939556]
[1643726689336,0.14623507,38599.0,38589.0,0.14879939]
[1643726689537,0.40521828,38607.0,38590.0,0.09984268]
[1643726689538,0.23332,38597.0,38590.0,0.09984268]
[1643726689735,0.20012806,38606.0,38590.0,0.09984268]
[1643726689935,0.6132047,38599.0,38590.0,0.1020139]
[1643726690136,0.6132047,38599.0,38590.0,0.2020139]
[1643726690339,0.23332,38598.0,38595.0,0.23038936]
[1643726690541,0.13244247,38607.0,38595.0,0.23038936]
[1643726690776,0.00158035,38596.0,38595.0,0.18141224]
[1643726690973,0.00158035,38596.0,38595.0,0.53152624]
[1643726691178,0.00158035,38596.0,38595.0,0.1]
[1643726691773,0.35979254,38604.0,38602.0,0.14590228]
[1643726691976,0.23332,38603.0,38602.0,0.14590228]
[1643726692374,0.23332,38603.0,38593.0,0.10070205]
[1643726692574,0.35979254,38604.0,38593.0,0.10070205]
[1643726692774,0.25722942,38609.0,38596.0,0.129571]
[1643726692975,0.00158035,38600.0,38597.0,0.05]
[1643726693175,0.00158035,38600.0,38597.0,0.1]
[1643726693574,0.00158035,38600.0,38599.0,0.09354969]
[1643726693774,0.00158035,38600.0,38599.0,0.14354969]
[1643726693977,0.25722942,38609.0,38599.0,0.05]
[1643726694175,0.23332,38608.0,38599.0,0.05]
[1643726694422,0.00158035,38601.0,38598.0,0.20928015]
[1643726695018,0.00158035,38601.0,38599.0,0.07576453]
[1643726695218,0.23332,38600.0,38599.0,0.07576453]
[1643726695421,0.00158035,38601.0,38598.0,0.20928015]
[1643726695620,0.23332,38600.0,38598.0,0.064785]
[1643726696518,0.23332,38600.0,38598.0,0.23431126]
[1643726696719,0.32201742,38609.0,38599.0,0.10055897]
[1643726696720,0.00158035,38601.0,38599.0,0.10055897]
[1643726697122,0.00158035,38601.0,38599.0,0.05]
[1643726697328,0.00158035,38601.0,38598.0,0.28431126]
[1643726697522,0.00632041,38607.0,38599.0,0.05]
[1643726697722,0.25722942,38609.0,38598.0,0.214785]
[1643726697723,0.28610001,38604.0,38598.0,0.214785]
[1643726697921,0.00158035,38601.0,38598.0,0.214785]
[1643726698369,0.23332,38600.0,38598.0,0.20511616]
[1643726698570,0.23332,38600.0,38599.0,0.13255181]
[1643726698968,0.28610001,38604.0,38599.0,0.13255181]
[1643726699167,0.00158035,38601.0,38599.0,0.13255181]
[1643726699369,0.23332,38600.0,38599.0,0.13255181]
[1643726699568,0.00158035,38601.0,38599.0,0.13870612]
[1643726699768,0.00158035,38601.0,38599.0,0.13255181]
[1643726699970,0.28610001,38604.0,38599.0,0.13255181]
[1643726700169,0.00158035,38602.0,38599.0,0.13915875]
[1643726700368,0.00158035,38602.0,38599.0,0.13255181]
[1643726700868,0.00158035,38602.0,38598.0,0.164785]
[1643726700869,0.23332,38601.0,38598.0,0.114785]
[1643726701072,0.23332,38601.0,38584.0,0.10193168]
[1643726701073,1.40012806,38600.0,38584.0,0.10193168]
[1643726701274,0.1,38598.0,38580.0,0.25926947]
[1643726701470,0.1,38598.0,38583.0,0.00161809]
[1643726701471,0.05,38596.0,38583.0,0.00161809]
[1643726701669,0.16476731,38592.0,38583.0,0.00161809]
[1643726701927,0.38364833,38584.0,38583.0,0.00161809]
[1643726702119,0.76370289,38584.0,38583.0,0.00161809]
[1643726702318,0.38005456,38584.0,38583.0,0.00161809]
[1643726702520,0.20707443,38591.0,38582.0,0.09526502]
[1643726702719,0.30482823,38593.0,38582.0,0.0016178]
[1643726702720,0.00158025,38588.0,38582.0,0.0016178]
[1643726703120,0.00158025,38588.0,38584.0,0.08760734]
[1643726703325,0.00158025,38588.0,38584.0,0.23424612]
[1643726703520,0.00158025,38588.0,38586.0,0.03807736]
[1643726703722,0.39029703,38601.0,38587.0,0.05]
[1643726703924,0.00158035,38588.0,38587.0,0.05]
[1643726704322,0.00158035,38588.0,38587.0,0.3666839]
[1643726704521,0.00158035,38588.0,38587.0,0.50168535]
[1643726704820,0.5465531,38603.0,38587.0,0.4666839]
[1643726704821,0.37138087,38603.0,38587.0,0.4666839]
[1643726705023,0.00158035,38589.0,38588.0,0.33820322]
[1643726705223,0.17517223,38604.0,38590.0,0.33823521]
[1643726705422,0.17517223,38606.0,38594.0,0.07189354]
[1643726705670,0.00631853,38607.0,38596.0,0.09318275]
[1643726705870,0.00631853,38607.0,38599.0,0.00615478]
[1643726706073,0.01,38609.0,38605.0,0.0851168]
[1643726706271,0.21118638,38607.0,38605.0,0.0851168]
[1643726706474,0.21118638,38607.0,38605.0,0.1851168]
[1643726706673,0.01,38609.0,38605.0,0.1851168]
[1643726706874,0.01,38609.0,38605.0,0.2498958]
[1643726707174,0.01,38609.0,38605.0,0.05]
[1643726707373,0.23332,38608.0,38605.0,0.05]
[1643726707573,0.064792,38606.0,38597.0,0.20012806]
[1643726707776,0.064792,38606.0,38597.0,0.1]
[1643726707976,0.064792,38606.0,38591.0,0.20012806]
[1643726707977,0.31365397,38605.0,38591.0,0.20012806]
[1643726708175,0.31365397,38605.0,38585.0,0.03315059]
[1643726708176,0.10344504,38596.0,38585.0,0.03315059]
[1643726708375,0.10344504,38596.0,38585.0,0.00687579]
[1643726708577,0.20012806,38603.0,38586.0,0.14552182]
[1643726708780,0.0015764,38592.0,38587.0,0.24620054]
[1643726708979,0.0015764,38592.0,38588.0,0.39709352]
[1643726709176,0.0015764,38592.0,38588.0,0.00741758]
[1643726709421,0.0015764,38592.0,38591.0,0.00645895]
[1643726709615,0.23996423,38605.0,38600.0,0.13295662]
[1643726709815,0.23332,38604.0,38600.0,0.13295662]
[1643726710014,0.23332,38604.0,38600.0,0.18295662]
[1643726710617,0.23332,38604.0,38602.0,0.0833271]
[1643726710820,0.13589414,38607.0,38602.0,0.0833271]
[1643726710821,0.00630314,38607.0,38602.0,0.0833271]
[1643726711023,0.0015764,38604.0,38601.0,0.05]
[1643726711820,0.298115,38603.0,38600.0,0.05]
[1643726712019,1.195,38602.0,38590.0,0.08357144]
[1643726712224,0.57701142,38601.0,38590.0,0.08357144]
[1643726712520,0.23332,38601.0,38590.0,0.13357144]
[1643726712721,0.0015764,38604.0,38591.0,0.20057276]
[1643726712722,0.28697999,38600.0,38591.0,0.20057276]
[1643726712918,0.0015764,38604.0,38590.0,0.16837073]
[1643726713175,0.1,38608.0,38597.0,0.16165674]
[1643726713375,0.1,38608.0,38590.0,0.03357144]
[1643726713376,0.064804,38602.0,38590.0,0.03357144]
[1643726713678,0.08109582,38605.0,38590.0,0.05370146]
[1643726713679,0.0015764,38599.0,38590.0,0.05370146]
[1643726714076,0.0015764,38599.0,38590.0,0.08357144]
[1643726714278,0.0015764,38599.0,38592.0,0.0432115]
[1643726714476,0.01,38609.0,38593.0,0.43240451]
[1643726714678,0.00630387,38607.0,38600.0,0.01678572]
[1643726714881,0.00630387,38607.0,38601.0,0.10182698]
[1643726715176,0.00630387,38607.0,38603.0,0.17261231]
[1643726715378,0.23332,38606.0,38600.0,0.08357144]
[1643726715778,0.23332,38606.0,38601.0,0.02062203]
[1643726715779,0.38549782,38606.0,38601.0,0.02062203]
[1643726715976,0.0015764,38605.0,38600.0,0.03357144]
[1643726716178,0.23332,38604.0,38600.0,0.03357144]
[1643726716376,0.28882259,38601.0,38600.0,0.03357144]
[1643726716784,1.72214259,38601.0,38600.0,0.03357144]
[1643726717025,1.72214259,38601.0,38600.0,0.05]
[1643726717026,1.47692,38601.0,38600.0,0.05]
[1643726717221,1.2,38600.0,38590.0,0.05]
[1643726717424,0.27692,38599.0,38590.0,0.05]
[1643726717623,0.40498592,38594.0,38590.0,0.05]
[1643726717823,0.064816,38592.0,38590.0,0.05]
[1643726718023,0.61665502,38591.0,38590.0,0.05]
[1643726718226,0.71665502,38591.0,38590.0,0.05]
[1643726718823,0.39922178,38591.0,38590.0,0.05]
[1643726719025,0.44282178,38591.0,38590.0,0.05]
[1643726719223,0.27692,38591.0,38590.0,0.05]
[1643726719823,0.56773818,38591.0,38590.0,0.1]
[1643726720425,0.56773818,38591.0,38585.0,0.02068085]
[1643726720426,1.2,38590.0,38585.0,0.01906109]
[1643726720668,0.27692,38589.0,38585.0,0.02068085]
[1643726721072,0.19949151,38588.0,38585.0,0.02068085]
[1643726721269,1.264818,38586.0,38585.0,0.02068085]
[1643726721472,1.541738,38586.0,38585.0,0.02068085]
[1643726721670,1.541738,38586.0,38585.0,0.01906109]
[1643726722273,0.064818,38586.0,38585.0,0.01906109]
[1643726722469,0.298138,38586.0,38585.0,0.01906109]
[1643726722670,0.298138,38586.0,38584.0,0.00161974]
[1643726722869,0.298138,38586.0,38583.0,0.05]
[1643726722870,0.288138,38586.0,38583.0,0.05]
[1643726723070,0.23332,38586.0,38584.0,0.00083222]
[1643726723269,0.23332,38589.0,38584.0,0.00083222]
[1643726723671,0.064814,38590.0,38584.0,0.04480177]
[1643726723870,0.064814,38590.0,38584.0,0.00083222]
[1643726723871,1.17636614,38585.0,38584.0,0.00083222]
[1643726724072,0.23332,38585.0,38584.0,0.05]
[1643726724272,0.064824,38586.0,38585.0,0.00162047]
[1643726724520,0.298144,38586.0,38585.0,0.00162047]
[1643726725320,0.298144,38586.0,38583.0,0.1349]
[1643726725520,0.064824,38586.0,38584.0,0.0016205]
[1643726725720,0.064824,38586.0,38585.0,0.05]
[1643726725920,0.298144,38586.0,38585.0,0.05]
[1643726727628,0.17517521,38594.0,38586.0,0.064811]
[1643726727821,0.42766603,38595.0,38586.0,0.064811]
[1643726727822,0.23332,38593.0,38586.0,0.064811]
[1643726728022,0.00157779,38591.0,38586.0,0.114811]
[1643726728268,0.00157779,38591.0,38587.0,0.21633015]
[1643726728467,0.28450499,38591.0,38587.0,0.07682539]
[1643726728667,0.298137,38590.0,38587.0,0.07682539]
[1643726729069,0.298137,38590.0,38588.0,0.04760508]
[1643726729070,0.064817,38590.0,38588.0,0.04760508]
[1643726729270,0.00157793,38591.0,38589.0,0.05]
[1643726729471,0.00157793,38591.0,38590.0,0.05572033]
[1643726729672,0.00157793,38591.0,38590.0,0.23943747]
[1643726729973,0.00157793,38591.0,38590.0,0.18943747]
[1643726730169,0.60446614,38603.0,38594.0,0.064794]
[1643726730372,0.23332,38602.0,38595.0,0.08748478]
[1643726730570,0.23332,38602.0,38593.0,0.03239636]
[1643726730571,0.15947695,38601.0,38592.0,0.129588]
[1643726730776,0.23332,38600.0,38584.0,0.129621]
[1643726730969,0.19514582,38599.0,38584.0,0.129621]